bitfinex-derivatives/quotes_ETHF0:USTF0_20250704
["timestamp","ask_amount","ask_price","bid_price","bid_amount"]
[1751618312586,37.359,2551.4,2551.3,0.78366]
[1751618312890,64.79422002,2551.4,2551.3,0.78366]
[1751618313282,2.2571,2551.7,2551.5,0.7836]
[1751618313482,64.40542002,2551.6,2551.5,0.7836]
[1751618313788,11.579,2551.6,2551.5,0.7836]
[1751618313979,11.579,2551.6,2551.5,3.9914]
[1751618314287,0.25333156,2552.3,2551.5,3.9914]
[1751618314288,3.2078,2553.2,2551.8,1.95875]
[1751618314590,1.9608,2552.5,2552.3,3.2078]
[1751618314890,39.8498,2552.5,2552.3,3.2078]
[1751618315089,18.21854002,2552.4,2552.3,3.2078]
[1751618315387,18.21854002,2552.4,2551.7,2.33399946]
[1751618315388,0.78341,2552.1,2552.0,3.2078]
[1751618315588,2.74421,2552.1,2552.0,3.2078]
[1751618315787,18.21863002,2552.1,2552.0,3.2078]
[1751618316386,16.25783002,2552.1,2552.0,3.2078]
[1751618316588,0.7834,2552.2,2552.0,3.2078]
[1751618316885,38.356,2552.3,2552.0,3.2078]
[1751618317190,2.74421,2552.1,2552.0,3.2078]
[1751618317577,18.21863002,2552.1,2552.0,3.2078]
[1751618318492,28.21863002,2552.1,2552.0,3.2078]
[1751618319189,0.78353,2551.8,2551.7,3.2078]
[1751618319388,41.09633,2551.8,2551.7,3.2078]
[1751618319588,38.352,2551.8,2551.7,3.2078]
[1751618319981,39.1355,2551.8,2551.7,3.2078]
[1751618320694,0.7836,2551.5,2551.4,3.2078]
[1751618321193,16.25802002,2551.5,2551.4,3.2078]
[1751618322688,0.7836,2551.5,2551.4,3.2078]
[1751618323588,16.25802002,2551.5,2551.4,3.2078]
[1751618323787,18.21882002,2551.5,2551.4,3.2078]
[1751618325692,11.805,2552.0,2551.4,3.2078]
[1751618325895,40.93929,2551.9,2551.8,3.2078]
[1751618326098,56.41371002,2551.9,2551.8,3.2078]
[1751618326282,56.41371002,2551.9,2551.8,3.9913]
[1751618327286,56.55671002,2551.9,2551.8,3.9913]
[1751618327489,54.57391002,2551.9,2551.8,3.2078]
[1751618328288,16.25791002,2551.9,2551.8,3.2078]
[1751618328594,54.56591002,2551.9,2551.8,3.9913]
[1751618328993,16.25791002,2551.9,2551.8,3.2078]
[1751618329490,54.52091002,2551.9,2551.8,3.2078]
[1751618329684,0.78359,2551.6,2551.5,3.2078]
[1751618329885,39.04059,2551.6,2551.5,3.2078]
[1751618330093,54.51501002,2551.6,2551.5,3.2078]
[1751618331090,54.51501002,2551.6,2551.5,3.9914]
[1751618331294,54.51501002,2551.6,2551.5,3.2078]
[1751618331795,53.72742002,2551.6,2551.5,3.9914]
[1751618332090,54.51099002,2551.6,2551.5,3.9914]
[1751618332296,53.72742002,2551.6,2551.5,3.9914]
[1751618332696,16.25799002,2551.6,2551.5,3.9914]
[1751618332891,54.44599002,2551.6,2551.5,3.9914]
[1751618333086,54.44599002,2551.6,2551.5,3.2078]
[1751618333087,56.40679002,2551.6,2551.5,3.2078]
[1751618333288,67.82709002,2551.6,2551.5,3.2078]
[1751618333495,68.72909002,2551.6,2551.5,3.2078]
[1751618333692,0.78377,2551.0,2550.8,0.9855]
[1751618333896,38.186,2551.0,2550.9,0.78376]
[1751618334284,38.174,2551.0,2550.9,0.78378]
[1751618334490,3.2078,2551.4,2550.9,3.10635921]
[1751618334786,65.45242002,2551.3,2551.2,0.78369]
[1751618334987,15.47442002,2551.3,2551.2,0.78369]
[1751618335192,11.804,2551.6,2551.5,0.7836]
[1751618335396,49.969,2551.6,2551.5,0.7836]
[1751618335786,49.968,2551.6,2551.5,0.7836]
[1751618336193,49.968,2551.6,2551.3,3.11173927]
[1751618336194,38.158,2551.7,2551.4,1.15258927]
[1751618336490,16.25799002,2551.6,2551.5,0.7836]
[1751618336691,38.158,2551.7,2551.4,2.43988927]
[1751618336995,15.47442002,2551.7,2551.6,0.78357]
[1751618337301,53.61142002,2551.7,2551.6,0.78357]
[1751618337691,0.78353,2551.8,2551.7,0.78354]
[1751618337891,38.90653,2551.8,2551.7,0.78354]
[1751618339092,0.78357,2551.7,2551.6,0.78355]
[1751618339287,18.21879002,2551.7,2551.6,0.78355]
[1751618339491,16.25799002,2551.7,2551.6,0.78355]
[1751618339799,0.78357,2551.6,2551.5,1.93616927]
[1751618340300,0.78357,2551.6,2551.5,0.78358]
[1751618340993,0.7836,2551.5,2551.4,2.33262059]
[1751618341194,18.21882002,2551.5,2551.4,2.33262059]
[1751618341399,56.26082002,2551.5,2551.4,2.33262059]
[1751618341698,56.26082002,2551.5,2551.4,0.78361]
[1751618342102,0.78363,2551.4,2551.3,3.11762946]
[1751618342287,2.74443,2551.4,2551.3,3.11765946]
[1751618342493,0.78363,2551.4,2551.3,3.11765946]
[1751618343300,38.82563,2551.5,2551.4,0.78363]
[1751618343494,40.12483,2551.5,2551.4,1.54257745]
[1751618343695,57.56005002,2551.5,2551.4,1.54257745]
[1751618345300,0.78363,2551.4,2551.3,2.33399946]
[1751618345499,19.51805002,2551.4,2551.3,3.11765946]
[1751618345796,17.55725002,2551.4,2551.3,2.33399946]
[1751618345998,0.78366,2551.3,2551.2,1.54423655]
[1751618346194,55.61298002,2551.3,2551.2,1.1584212]
[1751618346394,0.78369,2551.2,2551.1,5.53573655]
[1751618346600,18.21891002,2551.2,2551.1,5.53573655]
[1751618347104,18.21891002,2551.2,2551.1,4.75203655]
[1751618347404,28.21891002,2551.2,2551.1,4.75203655]
[1751618347600,28.21891002,2551.2,2551.1,5.53575655]
[1751618347802,28.21891002,2551.2,2551.1,4.75203655]
[1751618348605,28.21891002,2551.2,2551.1,5.53575655]
[1751618348902,0.78369,2551.2,2551.1,5.53575655]
[1751618350104,0.78369,2551.2,2551.1,2.32795655]
[1751618350304,38.66269,2551.2,2551.1,2.32795655]
[1751618350505,38.66269,2551.2,2551.1,0.78372]
[1751618350707,38.66269,2551.2,2551.1,2.33035652]
[1751618351204,5.16636,2552.1,2551.7,0.78354]
[1751618351504,2.74428,2551.9,2551.8,0.78348]
[1751618351900,38.61947,2552.0,2551.9,0.78347]
[1751618352096,39.7968,2552.0,2551.9,0.78347]
[1751618352301,55.27122002,2552.0,2551.9,0.78347]
[1751618352506,67.17922002,2552.0,2551.9,0.78347]
[1751618352807,67.17922002,2552.0,2551.9,2.33010652]
[1751618353002,67.18022002,2552.0,2551.9,2.33010652]
[1751618353202,65.21942002,2552.0,2551.9,0.78347]
[1751618353405,0.9236,2552.1,2552.0,0.78344]
[1751618353608,38.8876,2552.1,2552.0,0.78344]
[1751618354112,39.67101,2552.1,2552.0,2.32817206]
[1751618354300,57.10623002,2552.1,2552.0,0.78344]
[1751618354504,58.52143002,2552.1,2552.0,0.78344]
[1751618354907,68.52143002,2552.1,2552.0,0.78344]
[1751618355407,66.32282002,2552.1,2552.0,0.78344]
[1751618356014,67.10623002,2552.1,2552.0,0.78344]
[1751618356314,0.78344,2552.0,2551.9,1.54473206]
[1751618356519,18.21866002,2552.0,2551.9,1.54473206]
[1751618356710,0.7835,2551.8,2551.7,2.32824206]
[1751618357010,40.6313,2551.8,2551.7,2.32827206]
[1751618357212,56.10572002,2551.8,2551.7,2.32827206]
[1751618357509,59.31352002,2551.8,2551.7,1.54473206]
[1751618357713,0.78354,2551.7,2551.6,1.54473206]
[1751618357915,19.57926002,2551.7,2551.6,2.32830206]
[1751618358111,37.887,2551.8,2551.7,0.78354]
[1751618358112,38.67053,2551.8,2551.7,0.78354]
[1751618358414,52.37833,2551.8,2551.7,2.32827206]
[1751618358616,17.43522002,2551.8,2551.7,2.32827206]
[1751618358809,37.867,2551.8,2551.7,2.32827206]
[1751618359111,4.1314,2552.1,2552.0,0.78344]
[1751618359315,4.1314,2552.1,2552.0,2.32735956]
[1751618359515,3.2078,2552.8,2552.7,0.78323]
[1751618359718,5.1686,2553.1,2552.7,1.54280179]
[1751618360009,1.9608,2553.0,2552.8,1.93987273]
[1751618360208,17.43522002,2553.0,2552.9,0.78317]
[1751618360414,10.78314,2553.0,2552.9,0.78317]
[1751618360615,27.43522002,2553.0,2552.9,0.78317]
[1751618360812,28.21836002,2553.0,2552.9,0.78317]
[1751618361012,77.96936002,2553.0,2552.9,0.78317]
[1751618361212,77.96936002,2553.0,2552.1,7.30959928]
[1751618361213,17.43522002,2552.5,2552.1,7.30959928]
[1751618361414,37.97,2552.4,2552.3,0.78335]
[1751618361717,53.44442002,2552.4,2552.3,0.78335]
[1751618361915,37.97,2552.4,2552.3,0.78335]
[1751618362319,38.75332,2552.4,2552.3,0.78335]
[1751618362519,0.78337,2552.3,2552.2,0.78337]
[1751618362919,1.304,2552.3,2552.2,0.78337]
[1751618364113,2.08735,2552.3,2552.2,0.78337]
[1751618364313,1.304,2552.3,2552.2,0.78337]
[1751618364514,16.77842002,2552.3,2552.2,0.78337]
[1751618364715,18.73922002,2552.3,2552.2,0.78337]
[1751618365021,19.52257002,2552.3,2552.2,0.78337]
[1751618365416,18.73922002,2552.3,2552.2,0.78337]
[1751618367212,19.52257002,2552.3,2552.2,0.78337]
[1751618367615,18.73922002,2552.3,2552.2,0.78337]
[1751618368528,0.78341,2552.2,2552.1,0.7834]
[1751618368720,56.08463002,2552.2,2552.1,0.7834]
[1751618368923,0.78341,2552.1,2552.0,0.78344]
[1751618369128,2.17961,2552.1,2552.0,0.78344]
[1751618369922,39.2032,2552.1,2552.0,0.78344]
[1751618370123,39.98661,2552.1,2552.0,0.78344]
[1751618371524,3.2078,2552.5,2551.9,1.95866]
[1751618371722,1.9608,2552.2,2552.1,0.78341]
[1751618372221,39.86154,2552.4,2552.3,0.78335]
[1751618372427,41.80394614,2552.4,2552.3,0.78335]
[1751618372726,59.23916616,2552.4,2552.3,0.78335]
[1751618373914,21.46316616,2552.4,2552.3,0.78335]
[1751618374228,0.78337,2552.3,2552.2,0.78335]
[1751618374527,17.59889002,2552.3,2552.2,0.78335]
[1751618374727,19.55969002,2552.3,2552.2,0.78335]
[1751618375227,18.77632002,2552.3,2552.2,0.78335]
[1751618375626,19.55967002,2552.3,2552.2,0.78335]
[1751618375821,56.47932002,2552.3,2552.0,0.9862]
[1751618376125,56.47932002,2552.3,2552.1,0.78341]
[1751618376126,17.43522002,2552.2,2552.1,0.78341]
[1751618376426,18.84672002,2552.2,2552.1,0.78341]
[1751618377217,20.80520002,2552.2,2551.8,3.2078]
[1751618377526,20.80520002,2552.2,2552.0,0.78344]
[1751618377527,54.87376002,2552.1,2552.0,0.78344]
[1751618377727,56.28526002,2552.1,2552.0,0.78344]
[1751618377923,19.37762616,2552.1,2551.8,3.2078]
[1751618378128,0.78332,2552.4,2552.3,0.78334]
[1751618378328,40.38472614,2552.4,2552.3,0.78334]
[1751618378527,57.81994616,2552.4,2552.3,0.78334]
[1751618379027,0.78338,2552.3,2552.2,0.78336]
[1751618379322,17.66930002,2552.3,2552.2,0.78336]
[1751618379530,21.57250616,2552.3,2552.2,0.78336]
[1751618380430,19.63010002,2552.3,2552.2,0.78336]
[1751618380929,0.78338,2552.2,2552.1,0.78338]
[1751618381225,57.20940002,2552.2,2552.1,0.78338]
[1751618381427,0.78341,2552.1,2552.0,3.09541736]
[1751618381729,1.69451,2552.1,2552.0,3.09541736]
[1751618381930,3.03431,2552.1,2552.0,3.09541736]
[1751618382227,2.2509,2552.1,2552.0,3.09541736]
[1751618382623,0.9111,2552.1,2552.0,3.09541736]
[1751618382929,38.5151,2552.1,2552.0,3.09541736]
[1751618383227,2.3562,2552.4,2552.3,0.78335]
[1751618383532,2.91310614,2552.4,2552.3,0.78335]
[1751618383737,11.687,2552.5,2552.4,0.78332]
[1751618384031,15.67792,2553.1,2553.0,0.78314]
[1751618384233,55.21532614,2553.1,2553.0,0.78314]
[1751618384432,74.03604616,2553.1,2553.0,0.78314]
[1751618384632,73.25292616,2553.1,2553.0,0.78314]
[1751618384826,35.65792616,2553.1,2553.0,0.78314]
[1751618385028,73.28892616,2553.1,2553.0,0.78314]
[1751618385229,74.07203616,2553.1,2553.0,0.78314]
[1751618385927,24.75403616,2553.1,2553.0,0.78314]
[1751618386127,22.58542616,2553.1,2553.0,0.78314]
[1751618386332,71.87742616,2553.1,2553.0,0.78314]
[1751618386533,73.21292616,2553.1,2553.0,0.78314]
[1751618386832,31.70472002,2553.1,2553.0,0.78314]
[1751618387033,52.4888,2553.1,2553.0,0.78314]
[1751618387427,0.78314,2553.0,2552.9,3.09632253]
[1751618387629,19.55386002,2553.0,2552.9,3.09632253]
[1751618387837,57.13087002,2553.0,2552.9,0.78317]
[1751618388137,56.34772002,2553.0,2552.9,0.78317]
[1751618388432,57.13086002,2553.0,2552.9,0.78317]
[1751618389029,0.78319,2552.9,2552.8,0.78317]
[1751618389231,19.51051002,2552.9,2552.8,0.78317]
[1751618389433,17.54971002,2552.9,2552.8,0.78317]
[1751618389634,0.7832,2552.8,2552.7,6.30419253]
[1751618389837,18.21842002,2552.8,2552.7,6.30419253]
[1751618390134,57.07652002,2552.8,2552.7,6.30419253]
[1751618390334,57.07652002,2552.8,2552.7,5.52098253]
[1751618390534,19.51052002,2552.8,2552.7,3.99103]
[1751618390737,57.03652002,2552.8,2552.7,3.99103]
[1751618391042,57.03652002,2552.8,2552.2,3.11199928]
[1751618391043,1.95817,2552.6,2552.2,3.11199928]
[1751618391351,17.43522002,2552.3,2552.2,1.54323176]
[1751618391533,0.78338,2552.2,2552.1,1.54323176]
[1751618391730,67.74900002,2552.2,2552.1,1.54323176]
[1751618391934,69.70980002,2552.2,2552.1,1.54323176]
[1751618392236,0.78344,2552.0,2551.9,2.32670176]
[1751618392434,38.31144,2552.0,2551.9,2.32670176]
[1751618392634,55.74666002,2552.0,2551.9,2.32670176]
[1751618392828,55.74666002,2552.0,2551.9,1.54323176]
[1751618393338,18.21866002,2552.0,2551.9,1.54323176]
[1751618393539,68.77496002,2552.0,2551.9,1.54323176]
[1751618394843,0.78354,2551.7,2551.6,1.54323176]
[1751618395045,1.95892,2551.6,2551.0,6.31979928]
[1751618395340,0.78372,2551.1,2551.0,3.2078]
[1751618395540,40.27352,2551.1,2551.0,3.2078]
[1751618395747,57.16214002,2551.1,2551.0,3.2078]
[1751618396242,0.78381,2550.8,2550.7,3.2078]
[1751618396442,38.30781,2550.8,2550.7,3.2078]
[1751618396639,0.7839,2550.5,2550.4,3.2078]
[1751618396843,40.2677,2550.5,2550.4,3.99173]
[1751618397044,38.3069,2550.5,2550.4,3.2078]
[1751618397437,38.3069,2550.5,2550.4,3.99173]
[1751618397638,38.3069,2550.5,2550.4,3.2078]
[1751618398244,38.3069,2550.5,2550.4,3.99173]
[1751618398445,37.523,2550.5,2550.4,3.99173]
[1751618399234,37.501,2550.5,2550.4,3.99173]
[1751618400245,0.78383,2550.8,2550.6,0.78387]
[1751618400446,64.64642002,2550.7,2550.6,0.78387]
[1751618400646,66.60722002,2550.7,2550.6,0.78387]
[1751618401648,67.39106002,2550.7,2550.6,0.78387]
[1751618401946,0.7839,2550.5,2550.4,3.99171]
[1751618402148,19.58991002,2550.6,2550.5,0.7839]
[1751618402444,18.80602002,2550.6,2550.5,0.7839]
[1751618402647,19.58989002,2550.6,2550.5,0.7839]
[1751618402844,18.80602002,2550.6,2550.5,0.7839]
[1751618403043,0.9392,2551.0,2550.4,3.2078]
[1751618403246,49.13,2550.9,2550.8,0.78381]
[1751618403946,13.0618,2551.1,2551.0,0.78375]
[1751618404150,16.25817002,2551.0,2550.9,0.78376]
[1751618404346,18.21897002,2551.0,2550.8,0.7838]
[1751618404547,2.74464,2550.7,2550.6,0.78386]
[1751618404851,40.17966,2550.7,2550.6,0.78387]
[1751618405049,55.65408002,2550.7,2550.6,0.78387]
[1751618405347,55.65408002,2550.7,2550.4,3.99172]
[1751618405348,54.87022002,2550.7,2550.4,3.99172]
[1751618405546,2.7447,2550.5,2550.4,3.99172]
[1751618405852,0.78397,2550.3,2550.2,0.78399]
[1751618406055,15.47442002,2550.4,2550.3,0.78397]
[1751618406250,38.19891,2550.5,2550.4,0.78392]
[1751618406539,38.19891,2550.5,2550.1,3.2078]
[1751618406540,0.78393,2550.4,2550.3,0.78394]
[1751618406744,17.57435002,2550.4,2550.3,0.78394]
[1751618406943,19.53515002,2550.4,2550.3,0.78394]
[1751618407849,0.78398,2550.3,2550.2,0.78397]
[1751618408039,56.19752002,2550.3,2550.2,0.78397]
[1751618408243,54.23672002,2550.3,2550.2,0.78397]
[1751618408447,55.02069002,2550.3,2550.2,0.78397]
[1751618408849,56.98149002,2550.3,2550.2,0.78397]
[1751618410852,0.78402,2550.2,2550.1,0.784]
[1751618411051,19.60334002,2550.2,2550.1,0.784]
[1751618411246,0.78405,2550.1,2550.0,0.78404]
[1751618411452,0.9535,2550.2,2550.1,0.78403]
[1751618411645,50.6995,2550.2,2550.1,0.78403]
[1751618411847,68.13472002,2550.2,2550.1,0.78403]
[1751618412547,0.78406,2550.1,2550.0,0.78405]
[1751618412854,15.47442002,2549.9,2549.5,3.2078]
[1751618413042,2.74496,2549.7,2549.6,0.78415]
[1751618413447,0.78418,2549.6,2549.5,3.992]
[1751618413745,54.78022002,2549.6,2549.5,3.992]
[1751618413945,52.81942002,2549.6,2549.5,3.992]
[1751618414547,53.60360002,2549.6,2549.5,3.992]
[1751618414744,52.81942002,2549.6,2549.5,3.992]
[1751618415149,53.60360002,2549.6,2549.5,3.992]
[1751618415348,65.20960002,2549.6,2549.5,3.992]
[1751618415751,67.17040002,2549.6,2549.5,3.2078]
[1751618416151,0.78427,2549.3,2549.2,0.78428]
[1751618416452,40.05607,2549.3,2549.2,0.78428]
[1751618416653,53.56969002,2549.3,2549.2,0.78428]
[1751618416847,54.74622002,2549.3,2549.1,3.2078]
[1751618417051,18.21952002,2549.2,2549.1,3.99213]
[1751618417456,17.43522002,2549.2,2549.1,3.99213]
[1751618417657,18.21952002,2549.2,2549.0,0.78436]
[1751618417958,55.67092002,2549.1,2549.0,0.78436]
[1751618418550,66.33422002,2549.1,2549.0,0.78436]
[1751618419151,66.33422002,2549.1,2549.0,3.99216]
[1751618419749,17.43522002,2549.1,2549.0,3.99216]
[1751618419955,54.71722002,2549.1,2549.0,3.99216]
[1751618421846,17.43522002,2549.1,2549.0,3.99216]
[1751618422046,52.70842002,2549.1,2549.0,3.99216]
[1751618423451,15.47442002,2549.1,2549.0,3.99216]
[1751618423757,64.32242002,2549.1,2549.0,3.99216]
[1751618425352,65.10675002,2549.1,2549.0,3.99216]
[1751618425554,67.06755002,2549.1,2549.0,3.99216]
[1751618429168,66.28322002,2549.1,2549.0,3.99216]
[1751618430567,67.63842002,2549.1,2549.0,3.99216]
[1751618432074,68.42275002,2549.1,2549.0,3.99216]
[1751618432268,67.63842002,2549.1,2549.0,3.99216]
[1751618432972,67.63842002,2549.1,2549.0,0.78436]
[1751618434476,68.42275002,2549.1,2549.0,0.78436]
[1751618434675,67.63842002,2549.1,2549.0,0.78436]
[1751618435071,18.79042002,2549.1,2549.0,0.78436]
[1751618435267,67.47642002,2549.1,2549.0,0.78436]
[1751618436276,68.26075002,2549.1,2549.0,0.78436]
[1751618436576,67.47642002,2549.1,2549.0,0.78436]
[1751618438472,68.26075002,2549.1,2549.0,0.78436]
[1751618438878,67.47642002,2549.1,2549.0,0.78436]
[1751618439977,68.26075002,2549.1,2549.0,0.78436]
[1751618440478,67.47642002,2549.1,2549.0,0.78436]
[1751618440680,18.79042002,2549.1,2549.0,0.78436]
[1751618440882,67.34142002,2549.1,2549.0,0.78436]
[1751618441081,68.12575002,2549.1,2549.0,0.78436]
[1751618441383,68.12575002,2549.1,2549.0,2.32478148]
[1751618442979,67.34142002,2549.1,2549.0,2.32478148]
[1751618443180,67.34142002,2549.1,2549.0,0.78436]
[1751618443382,68.12575002,2549.1,2549.0,0.78436]
[1751618444282,68.12575002,2549.1,2549.0,3.08448219]
[1751618444584,68.12575002,2549.1,2549.0,0.78436]
[1751618445383,67.34142002,2549.1,2549.0,3.08448219]
[1751618445587,68.12575002,2549.1,2549.0,2.30012219]
[1751618445886,68.12579002,2549.1,2548.9,5.50792219]
[1751618446086,18.55002002,2549.0,2548.9,6.29231219]
[1751618446288,19.95012002,2549.0,2548.9,6.32408797]
[1751618446483,20.73449002,2549.0,2548.9,6.32408797]
[1751618446683,18.55002002,2549.0,2548.9,6.32408797]
[1751618446883,67.88539002,2549.0,2548.9,3.99219]
[1751618448488,67.88539002,2549.0,2548.9,0.78439]
[1751618448687,1.1148,2549.0,2548.9,0.78439]
[1751618448885,11.489,2549.1,2548.9,0.78439]
[1751618448886,11.489,2549.1,2549.0,0.78437]
[1751618449082,48.55,2549.1,2549.0,1.81717]
[1751618449281,56.469,2549.4,2549.3,0.78427]
[1751618449587,93.53,2549.4,2549.3,3.99207]
[1751618449786,37.061,2549.4,2549.3,3.99207]
[1751618450191,37.061,2549.4,2549.3,7.0947168]
[1751618450391,11.489,2549.6,2549.5,0.78421]
[1751618450591,48.549,2549.6,2549.5,0.78421]
[1751618451496,64.02342002,2549.6,2549.5,0.78421]
[1751618452594,48.549,2549.6,2549.5,0.78421]
[1751618452987,11.489,2549.6,2549.5,0.78421]
[1751618453188,48.544,2549.6,2549.5,0.78421]
[1751618455391,48.544,2549.6,2549.5,3.10561226]
[1751618460496,48.536,2549.6,2549.5,3.10561226]
[1751618462192,1.3264,2549.8,2549.7,0.78415]
[1751618462395,1.0833,2550.1,2550.0,0.78406]
[1751618462692,55.56152002,2550.1,2550.0,0.78406]
[1751618463195,55.56052002,2550.1,2550.0,2.33025455]
[1751618463792,57.67095002,2550.1,2550.0,1.54619455]
[1751618463994,0.78406,2550.0,2549.9,1.54619455]
[1751618464195,18.21928002,2550.0,2549.8,1.54619455]
[1751618464392,54.71581002,2549.9,2549.8,2.32140226]
[1751618464595,56.67661002,2549.9,2549.8,0.78412]
[1751618465294,0.78412,2549.8,2549.7,3.10553226]
[1751618465594,20.76424002,2549.8,2549.7,3.10553226]
[1751618465788,19.98012002,2549.8,2549.7,3.10553226]
[1751618466196,20.76424002,2549.8,2549.7,2.32140226]
[1751618466389,17.43522002,2549.8,2549.7,3.10555226]
[1751618466588,54.47122002,2549.8,2549.7,3.10555226]
[1751618467597,37.036,2550.0,2549.9,0.78409]
[1751618467796,52.51042002,2550.0,2549.9,5.53646962]
[1751618467997,54.47022002,2550.0,2549.9,5.53646962]
[1751618468499,54.47022002,2550.0,2549.9,6.30875943]
[1751618469300,54.47022002,2550.0,2549.9,3.99189]
[1751618470102,55.25428002,2550.0,2549.9,3.99189]
[1751618470302,56.61688002,2550.0,2549.9,2.32867957]
[1751618470497,55.83282002,2550.0,2549.9,2.32867957]
[1751618470696,53.87202002,2550.0,2549.9,3.99189]
[1751618470902,12.8174,2550.5,2549.9,5.52466943]
[1751618471104,1.9608,2550.2,2550.1,0.78403]
[1751618471607,37.81393,2550.4,2550.3,0.78397]
[1751618471905,39.15333,2550.4,2550.3,0.78397]
[1751618472104,56.58855002,2550.4,2550.3,0.78397]
[1751618472601,56.58855002,2550.4,2550.2,0.78397]
[1751618472904,15.47442002,2550.3,2550.2,0.78397]
[1751618473100,18.77462002,2550.3,2550.2,0.78397]
[1751618473504,18.77462002,2550.3,2550.2,2.32848241]
[1751618475203,18.77462002,2550.3,2550.2,5.53628241]
[1751618475806,18.77462002,2550.3,2550.2,6.30863943]
[1751618478208,18.77462002,2550.3,2550.2,3.99177]
[1751618478608,55.79062002,2550.3,2550.2,3.99177]
[1751618478810,55.79062002,2550.3,2550.2,6.31113295]
[1751618479706,55.79062002,2550.3,2550.2,5.52716295]
[1751618479905,56.57459002,2550.3,2550.2,4.75447826]
[1751618480106,56.57459002,2550.3,2550.2,3.2078]
[1751618481210,61.57459002,2550.3,2550.2,3.2078]
[1751618481407,56.57459002,2550.3,2550.2,3.2078]
[1751618482209,56.57459002,2550.3,2550.2,3.9918]
[1751618483012,18.77462002,2550.3,2550.2,3.9918]
[1751618483207,52.48342002,2550.3,2550.2,6.31116295]
[1751618483512,15.47442002,2550.3,2550.2,6.31116295]
[1751618483712,11.477,2550.4,2550.3,0.78397]
[1751618483912,1.4146,2550.6,2550.2,8.27011139]
[1751618484108,1.0939,2550.7,2550.6,0.78387]
[1751618484310,38.0999,2550.7,2550.6,2.33021898]
[1751618484511,38.0999,2550.7,2550.6,0.78387]
[1751618485312,39.5145,2550.7,2550.6,0.78387]
[1751618488211,56.94972002,2550.7,2550.6,0.78387]
[1751618488413,56.94972002,2550.7,2550.5,3.2078]
[1751618488715,18.21909002,2550.6,2550.5,5.52825132]
[1751618488915,19.50159002,2550.6,2550.5,6.31215132]
[1751618489115,18.71772002,2550.6,2550.5,3.9917]
[1751618489716,19.50159002,2550.6,2550.5,3.9917]
[1751618489916,19.50159002,2550.6,2550.5,3.2078]
[1751618490118,19.50159002,2550.6,2550.5,4.75514872]
[1751618490318,19.50159002,2550.6,2550.5,3.2078]
[1751618490714,19.50159002,2550.6,2550.5,3.9917]
[1751618490917,19.50159002,2550.6,2550.5,3.2078]
[1751618493222,19.50159002,2550.6,2550.5,3.9917]
[1751618494321,19.50159002,2550.6,2550.5,0.7839]
[1751618494723,0.7839,2550.5,2550.4,2.33215748]
[1751618495022,56.58712002,2550.5,2550.4,1.54824748]
[1751618495924,56.58712002,2550.5,2550.4,0.78394]
[1751618496222,0.78393,2550.4,2550.3,5.54000748]
[1751618496422,19.60015002,2550.4,2550.3,4.75604748]
[1751618497423,19.60015002,2550.4,2550.3,3.99177]
[1751618497618,19.60015002,2550.4,2550.3,5.54039099]
[1751618498018,19.60015002,2550.4,2550.3,4.75642099]
[1751618498919,0.78397,2550.3,2550.2,1.54862099]
[1751618499123,57.73769002,2550.3,2550.2,1.54862099]
[1751618499622,57.73769002,2550.3,2550.2,2.33262099]
[1751618500424,57.73769002,2550.3,2550.2,1.54862099]
[1751618500825,57.73769002,2550.3,2550.2,2.33262099]
[1751618502526,57.73769002,2550.3,2550.2,0.784]
[1751618502727,57.73769002,2550.3,2550.2,2.33283581]
[1751618504326,57.73769002,2550.3,2550.2,0.784]
[1751618508332,0.784,2550.2,2550.1,2.33284581]
[1751618508532,19.55102002,2550.2,2550.1,2.33284581]
[1751618511334,19.55102002,2550.2,2550.1,1.54883581]
[1751618512436,19.55102002,2550.2,2550.1,2.33286581]
[1751618512632,19.55102002,2550.2,2550.1,1.54883581]
[1751618513033,19.55102002,2550.2,2550.1,2.33286581]
[1751618516140,31.01402002,2550.2,2550.1,1.54883581]
[1751618516330,31.01402002,2550.2,2550.1,2.33261555]
[1751618516531,5.01326,2550.7,2550.1,2.33261555]
[1751618516532,7.51418723,2551.2,2550.4,0.78394]
[1751618516734,0.78379,2550.9,2550.8,1.54788214]
[1751618517134,0.78381,2550.8,2550.7,1.54788214]
[1751618517336,4.35673,2550.8,2550.7,1.54788214]
[1751618517638,19.83115002,2550.8,2550.7,1.54788214]
[1751618517839,19.83115002,2550.8,2550.5,1.54788214]
[1751618517840,0.78386,2550.7,2550.5,1.54788214]
[1751618518040,48.407,2550.6,2550.5,1.54788214]
[1751618518240,64.99624002,2550.6,2550.5,1.54788214]
[1751618519236,64.99624002,2550.6,2550.5,2.33178214]
[1751618519737,2.34715723,2551.4,2550.5,9.75568214]
[1751618519935,15.00441002,2551.3,2551.2,0.78368]
[1751618520439,15.00441002,2551.3,2551.1,1.9148]
[1751618520636,55.15121002,2551.2,2551.0,3.41222214]
[1751618520835,15.00441002,2551.1,2551.0,2.33162214]
[1751618521535,15.78813002,2551.1,2551.0,2.33162214]
[1751618521742,15.00441002,2551.1,2551.0,2.33162214]
[1751618522541,15.78813002,2551.1,2551.0,0.78374]
[1751618522742,3.2078,2551.8,2551.4,0.78363]
[1751618522945,13.98475002,2551.7,2551.6,0.78357]
[1751618523440,12.86993002,2551.7,2551.6,0.78357]
[1751618523840,13.65347002,2551.7,2551.6,0.78357]
[1751618524239,13.65347002,2551.7,2551.5,3.05778]
[1751618524542,12.86993002,2551.6,2551.5,3.05778]
[1751618524843,50.58650002,2551.6,2551.5,3.05778]
[1751618525043,49.80293002,2551.6,2551.5,3.05778]
[1751618526445,50.58650002,2551.6,2551.5,3.05778]
[1751618526639,49.80293002,2551.6,2551.5,3.05778]
[1751618526840,50.58650002,2551.6,2551.5,3.05778]
[1751618528145,50.58650002,2551.6,2551.5,2.2742]
[1751618528546,1.3012,2552.0,2551.5,2.2742]
[1751618528741,62.35175002,2551.9,2551.8,0.78351]
[1751618528945,62.35175002,2551.9,2551.8,3.99131]
[1751618530251,11.444,2552.0,2551.9,0.78346]
[1751618530450,61.23693002,2552.0,2551.9,0.78346]
[1751618531153,62.02037002,2552.0,2551.9,0.78346]